fUST/lending_fUST_20251114
["ID","MTS","AMOUNT","RATE_DAILY","PERIOD"]
[393875030,1763059850229,-2235.92,0.00079452,120]
[393875031,1763059850238,-2235.92,0.00079452,120]
[393875032,1763059850247,-2235.92,0.00079452,120]
[393875033,1763059850256,-2235.92,0.00079452,120]
[393875034,1763059850266,-2235.92,0.00079452,120]
[393875035,1763059850275,-2235.92,0.00079452,120]
[393875036,1763059850284,-2235.92,0.00079452,120]
[393875037,1763059850293,-2235.92,0.00079452,120]
[393875038,1763059850302,-2235.92,0.00079452,120]
[393875039,1763059850312,-2235.92,0.00079452,120]
[393875040,1763059850321,-2235.92,0.00079452,120]
[393875041,1763059850329,-2235.92,0.00079452,120]
[393875042,1763059850338,-2235.92,0.00079452,120]
[393875043,1763059850347,-2235.92,0.00079452,120]
[393875044,1763059850356,-2235.92,0.00079452,120]
[393875045,1763059850365,-2235.92,0.00079452,120]
[393875046,1763059850376,-2235.92,0.00079452,120]
[393875047,1763059850385,-2235.92,0.00079452,120]
[393875048,1763059850394,-2235.92,0.00079452,120]
[393875049,1763059850404,-2235.92,0.00079452,120]
[393875050,1763059850413,-2236.104466,0.00079452,120]
[393875051,1763059850422,-469.34103288,0.00079452,120]
[393875052,1763059850431,-419.42736324,0.00079452,120]
[393875053,1763059850440,-427.14553794,0.00079452,120]
[393875054,1763059850449,-232.15645304,0.00079452,120]
[393875055,1763059850458,-253.82041033,0.00079452,120]
[393875056,1763059850467,-397.45871435,0.00079452,120]
[393875057,1763059850477,-178.82981054,0.00079452,120]
[393875058,1763059850486,-460.0,0.00079452,120]
[393875059,1763059850495,-263.53424056,0.00079452,120]
[393875060,1763059850504,-495.97064784,0.00079452,120]
[393875061,1763059850514,-354.11441804,0.00079452,120]
[393875062,1763059850523,-387.96364349,0.00079452,120]
[393875063,1763059850533,-375.7661312,0.00079452,120]
[393875064,1763059850544,-303.10785081,0.00079452,120]
[393875065,1763059850554,-353.79920909,0.00079452,120]
[393875066,1763059850564,-393.53704089,0.00079452,120]
[393875067,1763059850574,-276.6983946,0.00079452,120]
[393875068,1763059850583,-421.52518161,0.00079452,120]
[393875069,1763059850594,-177.5453823,0.00079452,120]
[393875070,1763059850603,-483.84316371,0.00079452,120]
[393875071,1763059850613,-265.52931695,0.00079452,120]
[393875072,1763059850623,-273.12722705,0.00079452,120]
[393875073,1763059850633,-184.68754335,0.00079452,120]
[393875074,1763059850643,-434.49139621,0.00079452,120]
[393875075,1763059850652,-257.97748593,0.00079452,120]
[393875076,1763059850661,-500.0,0.00079452,120]
[393875077,1763059850670,-500.0,0.00079452,120]
[393875078,1763059850679,-614.14324689,0.00079452,120]
[393875079,1763059850689,-184.18707144,0.00079452,120]
[393875080,1763059850699,-342.65539098,0.00079452,120]
[393875081,1763059850708,-185.37911794,0.00079452,120]
[393875082,1763059850717,-376.53497356,0.00079452,120]
[393875083,1763059850726,-367.18385589,0.00079452,120]
[393875084,1763059850735,-494.72215429,0.00079452,120]
[393875085,1763059850746,-231.47779029,0.00079452,120]
[393875086,1763059850755,-426.99800988,0.00079452,120]
[393875087,1763059850765,-223.8946208,0.00079452,120]
[393875088,1763059850775,-461.2485582,0.00079452,120]
[393875089,1763059850785,-313.96039456,0.00079452,120]
[393875090,1763059850796,-234.39257465,0.00079452,120]
[393875091,1763059850806,-500.0,0.00079452,120]
[393875092,1763059850816,-500.0,0.00079452,120]
[393875093,1763059850825,-500.0,0.00079452,120]
[393875094,1763059850835,-421.49787116,0.00079452,120]
[393875095,1763059850844,-299.05599992,0.00079452,120]
[393875096,1763059850853,-193.53706196,0.00079452,120]
[393875097,1763059850862,-222.97836362,0.00079452,120]
[393875098,1763059850872,-442.7583678,0.00079452,120]
[393875099,1763059850882,-221.50190868,0.00079452,120]
[393875100,1763059850891,-323.78841583,0.00079452,120]
[393875101,1763059850902,-235.56794442,0.00079452,120]
[393875102,1763059850911,-212.56409202,0.00079452,120]
[393875103,1763059850921,-385.26358469,0.00079452,7]
[393875104,1763059850931,-346.48237819,0.00079452,120]
[393875105,1763059850940,-480.0,0.00079452,120]
[393875106,1763059850949,-452.72449376,0.00079452,120]
[393875107,1763059850959,-417.49737715,0.00079452,120]
[393875108,1763059850968,-426.97084108,0.00079452,120]
[393875109,1763059850977,-441.79085967,0.00079452,120]
[393875110,1763059850987,-480.0,0.00079452,120]
[393875111,1763059850996,-412.22769198,0.00079452,120]
[393875112,1763059851006,-273.51866982,0.00079452,120]
[393875113,1763059851015,-405.3913905,0.00079452,120]
[393875114,1763059851024,-393.0,0.00079714,7]
[393875115,1763059851034,-650.0,0.0007984,15]
[393875116,1763059851044,-922269.93476653,0.000799,120]
[393875117,1763059851059,-151.0,0.000799,120]
[393875118,1763059851070,-151.0,0.000799,120]
[393875119,1763059851079,-151.0,0.000799,120]
[393875120,1763059851088,-151.0,0.000799,120]
[393875121,1763059851099,-151.0,0.000799,120]
[393875122,1763059851108,-151.0,0.000799,120]
[393875123,1763059851118,-291.216836,0.000799,120]
[393875124,1763059851129,-170.954593,0.000799,120]
[393875125,1763059851138,-170.954593,0.000799,120]
[393875126,1763059851147,-170.954593,0.000799,120]
[393875127,1763059851156,-170.954593,0.000799,120]
[393875128,1763059851166,-151.0,0.000799,30]
[393875129,1763059851175,-1713.589236,0.000799,120]
[393875130,1763059851184,-151.0,0.000799,30]
[393875131,1763059851194,-1713.589236,0.000799,120]
[393875132,1763059851203,-1713.589236,0.000799,120]
[393875133,1763059851212,-1713.589236,0.000799,120]
[393875134,1763059851221,-151.0,0.000799,120]
[393875135,1763059851230,-151.0,0.000799,120]
[393875136,1763059851240,-151.0,0.000799,120]
[393875137,1763059851249,-151.0,0.000799,120]
[393875138,1763059851258,-156.527824,0.000799,120]
[393875139,1763059851268,-151.0,0.000799,120]
[393875140,1763059851277,-151.0,0.000799,120]
[393875141,1763059851286,-202.576591,0.000799,120]
[393875142,1763059851296,-160.0,0.00079978,6]
[393875143,1763059851305,-436.09829864,0.00079999,120]
[393875144,1763059851313,-500.0,0.00079999,7]
[393875145,1763059851323,-400.52932381,0.00079999,120]
[393875146,1763059851332,-500.0,0.00079999,120]
[393875147,1763059851341,-500.0,0.00079999,7]
[393875148,1763059851350,-500.0,0.00079999,7]
[393875149,1763059851359,-587.53386724,0.00079999,120]
[393875150,1763059851368,-500.0,0.00079999,7]
[393875151,1763059851379,-500.0,0.00079999,7]
[393875152,1763059851388,-650.75128726,0.00079999,7]
[393875153,1763059851397,-282.2537864,0.00079999,120]
[393875154,1763059851407,-184.06567526,0.00079999,120]
[393875155,1763059851416,-5000.0,0.0008,120]
[393875156,1763059851425,-226.0,0.0008,120]
[393875157,1763059851434,-10000.0,0.0008,120]
[393875158,1763059851444,-1000.0,0.0008,120]
[393875159,1763059851453,-2008.964,0.00080024,120]
[393875160,1763059851462,-620.0,0.00080024,120]
[393875161,1763059851471,-585.29221631,0.00080068,2]
[393875162,1763059851480,-1053.52598935,0.00080068,2]
[393875163,1763059851489,-205.53322757,0.00080068,2]
[393875164,1763059851498,-822.13291028,0.00080068,2]
[393875165,1763059851507,-1849.79904812,0.00080068,2]
[393875166,1763059851516,-295.88576704,0.00080068,2]
[393875167,1763059851525,-532.59438067,0.00080068,2]
[393875168,1763059851534,-1660.53075385,0.00080068,2]
[393875169,1763059851543,-3288.5316411,0.00080068,2]
[393875170,1763059851552,-8120.63,0.000801,14]
[393875171,1763059851562,-500.0,0.00080136,120]
[393875172,1763059851571,-355.0,0.0008027,2]
[393875173,1763059851580,-750.0,0.00080388,15]
[393875174,1763059851590,-168.72848749,0.00080411,120]
[393875175,1763059851599,-500.0,0.00080821,120]
[393875176,1763059851608,-611.20594668,0.00080936,15]
[393875177,1763059851617,-10000.0,0.00081,120]
[393875178,1763059851626,-500.0,0.00081506,120]
[393875179,1763059851636,-10000.0,0.00082,120]
[393875180,1763059851645,-1000.0,0.00082,120]
[393875181,1763059851654,-500.0,0.00082191,120]
[393875182,1763059851663,-500.0,0.00082427,120]
[393875183,1763059851672,-500.0,0.000828,120]
[393875184,1763059851681,-468.83477393,0.00082876,120]
[393875185,1763059851690,-10000.0,0.00083,120]
[393875186,1763059851699,-2303.87624863,0.00083023,6]
[393875187,1763059851709,-500.0,0.00083348,120]
[393875188,1763059851719,-1246.96782872,0.0008389,120]
[393875189,1763059851736,-8753.03217128,0.0008389,120]
[393875190,1763059851746,-500.0,0.00083896,120]
[393875191,1763059851755,-4283.09404973,0.0008398,120]
[393875192,1763059851766,-321.0,0.0008398,120]
[393875193,1763059851777,-1968.91,0.0008398,120]
[393875194,1763059852113,150.0,0.00038953,30]
[393875234,1763059910854,244.42932286,0.00025243,2]
[393875236,1763059911726,244.42932286,0.00031553,2]
[393875266,1763059942700,232.49657412,0.00025243,2]
[393875267,1763059943372,232.49657412,0.00031237,2]
[393875268,1763059973984,150.0,0.0002589,2]
[393875269,1763059974756,-177.0,0.0002789,2]
[393875270,1763059974901,85.25288309,0.0002989,2]
[393875271,1763059979628,-118.74711691,0.0002989,2]
[393875272,1763059979651,-104.33974484,0.0003189,2]
[393875273,1763059982206,-126.66025516,0.0003189,2]
[393875275,1763060007429,-258.0,0.0003389,120]
[393875276,1763060007468,-722.31,0.00035272,2]
[393875277,1763060007506,-722.31,0.0003534,2]
[393875278,1763060015014,-195.5133253,0.00035858,2]
[393875279,1763060017261,-169.01444412,0.00035858,2]
[393875280,1763060019550,-357.78223058,0.00035858,2]
[393875281,1763060019571,-164.75119926,0.00035858,2]
[393875282,1763060021776,-297.17411641,0.00035858,2]
[393875283,1763060022327,174.3330929,0.00025243,2]
[393875284,1763060023415,-260.38468433,0.00035858,2]
[393875285,1763060023437,-54.77106548,0.0003586,2]
[393875286,1763060024914,-405.93510845,0.0003586,2]
[393875287,1763060027490,-171.52565003,0.0003586,2]
[393875288,1763060029674,-90.07817604,0.0003586,2]
[393875289,1763060029697,-209.92182396,0.00035868,2]
[393875290,1763060031078,-428.47434997,0.00035868,2]
[393875291,1763060031159,500.0,0.00035329,2]
[393875292,1763060033226,-83.91382607,0.00035868,2]
[393875293,1763060033249,-216.08617393,0.00035868,2]
[393875294,1763060035150,-300.0,0.00035868,2]
[393875295,1763060037862,-206.22382607,0.00035868,2]
[393875296,1763060037884,-63.14630466,0.00035868,2]
[393875297,1763060041077,-182.74873846,0.00035868,2]
[393875298,1763060045299,-173.11499596,0.00035867,2]
[393875299,1763060047334,-206.3448915,0.00035867,2]
[393875300,1763060050800,-20.54011254,0.00035867,2]
[393875301,1763060050826,-250.88988746,0.00035868,2]
[393875302,1763060053316,-225.52506942,0.00035868,2]
[393875303,1763060053338,-224.47493058,0.00035868,2]
[393875304,1763060054825,500.0,0.00035272,4]
[393875305,1763060055064,218.5162716,0.0003534,4]
[393875306,1763060055582,-300.0,0.00035868,2]
[393875307,1763060102380,150.0,0.00030094,2]
[393875308,1763060105010,-160.81857193,0.00035616,5]
[393875332,1763060219810,500.0,0.00035329,2]
[393875333,1763060220063,500.0,0.00035339,2]
[393875334,1763060220333,500.0,0.00035339,2]
[393875335,1763060220606,500.0,0.00035339,2]
[393875336,1763060220848,500.0,0.00035339,2]
[393875337,1763060221122,500.0,0.00035339,2]
[393875338,1763060221404,500.0,0.00035339,2]
[393875339,1763060221680,500.0,0.00035339,2]
[393875340,1763060221930,500.0,0.00035339,2]
[393875341,1763060222242,500.0,0.00035339,2]
[393875343,1763060222478,500.0,0.00035339,2]
[393875344,1763060222783,500.0,0.00035339,2]
[393875345,1763060223404,500.0,0.00035339,2]
[393875346,1763060223671,500.0,0.00035339,2]
[393875347,1763060223913,500.0,0.00035339,2]
[393875348,1763060224163,500.0,0.00035339,2]
[393875349,1763060224395,500.0,0.00035339,2]
[393875350,1763060224730,500.0,0.00035339,2]
[393875351,1763060224884,500.0,0.00035339,2]
[393875352,1763060225166,500.0,0.00035339,2]
[393875353,1763060225443,500.0,0.00035339,2]
[393875354,1763060225706,532.58506942,0.00035339,2]
[393875357,1763060287789,150.0,0.0002589,2]
[393875361,1763060320627,160.81857193,0.000271,3]
[393875362,1763060336673,-177.0,0.0002789,2]
[393875363,1763060349292,-204.0,0.0002989,2]
[393875364,1763060362555,263.643753,0.00013699,2]
[393875365,1763060362775,263.643753,0.00020187,2]
[393875366,1763060362991,263.643753,0.00026676,2]
[393875368,1763060368132,300.0,0.000259,20]
[393875369,1763060377564,300.0,0.000259,7]
[393875370,1763060384245,-231.0,0.0003189,2]
[393875371,1763060384265,-263.643753,0.00033165,2]
[393875372,1763060384288,-177.44788898,0.0003379,2]
[393875373,1763060384307,-258.0,0.0003389,120]
[393875374,1763060384327,-500.0,0.00035272,4]
[393875375,1763060384347,-164.1545344,0.00035327,4]
[393875376,1763060384366,-190.45629137,0.00035551,10]
[393875377,1763060384385,-350.17871525,0.00035616,5]
[393875378,1763060384502,-168.59697853,0.00035768,120]
[393875379,1763060384525,-400.0,0.00035865,2]
[393875380,1763060384547,-1600.0,0.00035866,3]
[393875381,1763060384567,-300.0,0.00035867,3]
[393875382,1763060384586,-300.0,0.00035867,3]
[393875383,1763060384606,-1600.0,0.00035867,3]
[393875384,1763060384625,-6516.18723188,0.00035867,2]
[393875385,1763060384645,-285.0,0.0003589,120]
[393875386,1763060384663,-219.0,0.00036113,2]
[393875387,1763060384684,-150.25,0.00036213,60]
[393875388,1763060384703,-153.7,0.00036313,60]
[393875389,1763060384724,-150.25,0.00036313,60]
[393875390,1763060384742,-153.7,0.00036413,60]
[393875391,1763060384763,-150.25,0.00036413,60]
[393875392,1763060384783,-153.7,0.00036513,60]
[393875393,1763060384805,-150.25,0.00036513,60]
[393875394,1763060384824,-153.7,0.00036613,60]
[393875395,1763060384846,-150.25,0.00036613,60]
[393875396,1763060384866,-158.47587249,0.00036651,10]
[393875397,1763060384884,-500.0,0.000367,5]
[393875398,1763060384904,-153.7,0.00036713,60]
[393875399,1763060384925,-150.25,0.00036713,60]
[393875400,1763060384944,-153.7,0.00036813,60]
[393875401,1763060384965,-150.25,0.00036813,60]
[393875402,1763060384985,-153.7,0.00036913,60]
[393875403,1763060385007,-150.25,0.00036913,60]
[393875404,1763060387223,300.0,0.000259,7]
[393875405,1763060393458,212.39516057,0.00030876,2]
[393875407,1763060396393,300.0,0.000259,2]
[393875408,1763060405909,300.0,0.000259,2]
[393875409,1763060414345,220.5,0.000267,20]
[393875410,1763060422166,-153.70024034,0.00037013,60]
[393875411,1763060422188,-150.25,0.00037013,60]
[393875412,1763060422212,-150.25,0.00037113,60]
[393875413,1763060422236,-150.25,0.00037213,60]
[393875414,1763060422261,-621.0,0.0003723,3]
[393875415,1763060422282,-232.49657412,0.00037231,2]
[393875416,1763060422302,-174.3330929,0.00037231,2]
[393875417,1763060422325,-297.4001159,0.00037231,2]
[393875418,1763060422346,-182.57098884,0.00037231,2]
[393875419,1763060422366,-512.13862,0.00037248,5]
[393875420,1763060422389,-150.25,0.00037313,60]
[393875421,1763060422410,-150.25,0.00037413,60]
[393875422,1763060422431,-400.0,0.00037423,2]
[393875423,1763060422450,-177.44788898,0.00037425,2]
[393875424,1763060422471,-150.25,0.00037513,60]
[393875425,1763060422492,-150.25,0.00037613,60]
[393875426,1763060422515,-150.25,0.00037713,60]
[393875427,1763060422537,-150.25,0.00037813,60]
[393875428,1763060422558,-244.42932286,0.00037864,2]
[393875429,1763060422580,-150.25,0.00037913,60]
[393875430,1763060424087,220.5,0.000267,7]
[393875431,1763060433852,189.0,0.000267,2]
[393875433,1763060465466,151.0,0.00039484,30]
[393875434,1763060466073,156.587,0.00039484,120]
[393875435,1763060466678,162.380719,0.00039484,30]
[393875436,1763060467296,168.3888056,0.00039484,120]
[393875437,1763060468021,174.61919141,0.00039484,30]
[393875438,1763060468658,181.08010149,0.00039484,30]
[393875439,1763060469289,187.78006525,0.00039484,40]
[393875440,1763060469895,194.72792766,0.00039484,120]
[393875441,1763060470527,201.93286099,0.00039484,120]
[393875442,1763060471154,209.40437684,0.00039484,20]
[393875443,1763060471759,217.15233878,0.00039484,20]
[393875444,1763060472389,225.18697532,0.00039484,20]
[393875445,1763060472995,233.51889341,0.00039484,20]
[393875446,1763060473586,242.15909246,0.00039484,20]
[393875447,1763060474187,251.11897888,0.00039484,20]
[393875448,1763060474839,260.4103811,0.00039484,20]
[393875449,1763060475430,270.0455652,0.00039484,20]
[393875450,1763060476025,280.03725112,0.00039484,20]
[393875451,1763060476666,290.39862941,0.00039484,20]
[393875452,1763060477270,290.39862941,0.00039484,20]
[393875453,1763060485078,-1000.0,0.00035328,2]
[393875454,1763060485127,-1000.0,0.00035328,2]
[393875455,1763060485178,-1000.0,0.00035328,2]
[393875456,1763060485221,-1000.0,0.00035328,2]
[393875457,1763060485264,-1000.0,0.00035328,2]
[393875458,1763060485304,-1000.0,0.00035328,2]
[393875459,1763060504224,-153.7,0.00036744,60]
[393875460,1763060504247,-150.25,0.00038013,60]
[393875461,1763060515899,-4311.45337593,0.00038113,2]
[393875462,1763060515927,-150.25,0.00038113,60]
[393875463,1763060515951,-150.25,0.00038213,60]
[393875464,1763060515974,-150.25,0.00038313,60]
[393875465,1763060515997,-150.25,0.00038413,120]
[393875466,1763060516023,-835.0,0.00038422,5]
[393875467,1763060516047,-148.59662407,0.00038513,120]
[393875468,1763060545388,400.28388004,0.000354,2]
[393875469,1763060545994,400.28388004,0.0003288,120]
[393875483,1763060596291,225.53286956,0.00025243,2]
[393875484,1763060627152,10000.0,0.0002528,30]
[393875487,1763060644252,3127.69,0.0003,2]
[393875489,1763060704834,402.62032611,0.0002988,2]
[393875494,1763060819106,5000.0,0.0003,2]
[393875496,1763060841817,4128.72554533,0.0003,2]
[393875497,1763060845129,-216.72074904,0.0003,2]
[393875500,1763060950116,-654.55370563,0.0003,2]
[393875501,1763060950138,-225.53286956,0.00031237,2]
[393875502,1763060950159,-225.53286956,0.00037231,2]
[393875503,1763060950188,-9243.481755,0.00038157,2]
[393875504,1763060950214,-330.87580505,0.00038239,2]
[393875505,1763060950237,-1589.5358649,0.00038441,2]
[393875506,1763060950260,-1.65337593,0.00038513,120]
[393875507,1763060950281,-150.25,0.00038613,120]
[393875508,1763060950307,-150.25,0.00038713,120]
[393875509,1763060950328,-150.25,0.00038813,120]
[393875510,1763060950350,-150.25,0.00038913,120]
[393875511,1763060950372,-600.49197068,0.00039012,2]
[393875512,1763060950394,-150.25,0.00039013,120]
[393875513,1763060950415,-150.25,0.00039113,120]
[393875514,1763060950437,-150.25,0.00039213,120]
[393875515,1763060950460,-188.668,0.00039313,54]
[393875516,1763060950483,-150.25,0.00039313,120]
[393875517,1763060950504,-150.25,0.00039413,120]
[393875518,1763060950526,-150.25,0.00039513,120]
[393875519,1763060950546,-150.25,0.00039613,120]
[393875520,1763060950566,-263.643753,0.00039654,2]
[393875521,1763060950590,-150.25,0.00039713,120]
[393875522,1763060950612,-150.25,0.00039813,120]
[393875523,1763060950632,-150.25,0.00039913,120]
[393875524,1763060950655,-150.25,0.00040013,120]
[393875525,1763060950675,-150.25,0.00040113,120]
[393875526,1763060950695,-150.25,0.00040213,120]
[393875527,1763060950716,-150.25,0.00040313,120]
[393875528,1763060950738,-501.73645282,0.00040335,5]
[393875529,1763060950757,-500.0,0.00040335,5]
[393875530,1763060950915,-642.48705295,0.00040335,5]
[393875531,1763060950936,-436.91889846,0.00040335,5]
[393875532,1763060950959,-150.25,0.00040413,120]
[393875533,1763060950982,-150.25,0.00040513,120]
[393875534,1763060951002,-150.25,0.00040613,120]
[393875535,1763060951023,-150.25,0.00040713,120]
[393875536,1763060951042,-150.25,0.00040813,120]
[393875537,1763060951061,-1000.0,0.00040883,5]
[393875538,1763060951080,-150.25,0.00040913,120]
[393875539,1763060951110,-150.25,0.00041013,120]
[393875540,1763060951128,-177.44788898,0.00041059,2]
[393875541,1763060951148,-150.25,0.00041113,120]
[393875542,1763060951167,-228.54224513,0.00041155,31]
[393875543,1763060951188,-500.0,0.00041155,31]
[393875544,1763060951210,-500.0,0.00041155,31]
[393875545,1763060951232,-500.0,0.00041155,31]
[393875546,1763060951259,-500.0,0.00041155,31]
[393875547,1763060951282,-398.47255011,0.00041155,31]
[393875548,1763060951308,-533.49683416,0.00041155,7]
[393875549,1763060951329,-500.0,0.00041155,31]
[393875550,1763060951349,-500.0,0.00041155,31]
[393875551,1763060951371,-119.40498408,0.00041155,31]
[393875552,1763060951401,-380.59501592,0.00041155,31]
[393875553,1763060951420,-217.26398628,0.00041155,31]
[393875554,1763060951446,-533.49683416,0.00041155,7]
[393875555,1763060951466,-500.0,0.00041155,31]
[393875556,1763060951488,-500.0,0.00041155,31]
[393875557,1763060951507,-500.0,0.00041155,31]
[393875558,1763060951533,-533.49683416,0.00041155,7]
[393875559,1763060951553,-500.0,0.00041155,31]
[393875560,1763060951573,-438.90660748,0.00041155,31]
[393875561,1763060951594,-500.0,0.00041155,31]
[393875562,1763060951614,-500.0,0.00041155,31]
[393875563,1763060951636,-533.49683416,0.00041155,7]
[393875564,1763060951656,-476.35777112,0.00041155,31]
[393875565,1763060951677,-500.0,0.00041155,31]
[393875566,1763060951701,-533.49683416,0.00041155,7]
[393875567,1763060951722,-500.0,0.00041155,31]
[393875568,1763060951744,-500.0,0.00041155,31]
[393875569,1763060951765,-500.0,0.00041155,31]
[393875570,1763060951791,-533.49683416,0.00041155,7]
[393875571,1763060951813,-500.0,0.00041155,31]
[393875572,1763060951833,-500.0,0.00041155,31]
[393875573,1763060951855,-500.0,0.00041155,31]
[393875574,1763060951879,-533.49683416,0.00041155,7]
[393875575,1763060951905,-500.0,0.00041155,31]
[393875576,1763060951925,-500.0,0.00041155,31]
[393875577,1763060951947,-427.89561424,0.00041155,31]
[393875579,1763060959117,-403.784,0.00038013,4]
[393875580,1763060959139,-72.10438576,0.00041155,31]
[393875581,1763060959161,-570.91404203,0.00041155,31]
[393875582,1763060959187,-533.49683416,0.00041155,7]
[393875583,1763060959210,-500.0,0.00041155,31]
[393875584,1763060959236,-533.49683416,0.00041155,7]
[393875585,1763060959258,-500.0,0.00041155,31]
[393875586,1763060959279,-500.0,0.00041155,31]
[393875587,1763060959304,-533.49683416,0.00041155,7]
[393875588,1763060959325,-500.0,0.00041155,31]
[393875589,1763060959346,-409.19103938,0.00041155,31]
[393875590,1763060959368,-500.0,0.00041155,31]
[393875591,1763060959392,-533.49683416,0.00041155,7]
[393875592,1763060959416,-500.0,0.00041155,31]
[393875593,1763060959445,-533.49683416,0.00041155,7]
[393875594,1763060959469,-500.0,0.00041155,31]
[393875595,1763060959492,-500.0,0.00041155,31]
[393875596,1763060959516,-533.49683416,0.00041155,7]
[393875597,1763060959542,-533.49683416,0.00041155,7]
[393875598,1763060959562,-500.0,0.00041155,31]
[393875599,1763060959585,-533.49683416,0.00041155,7]
[393875600,1763060959608,-533.49683416,0.00041155,7]
[393875601,1763060959629,-500.0,0.00041155,31]
[393875602,1763060959653,-533.49683416,0.00041155,7]
[393875603,1763060959675,-533.49683416,0.00041155,7]
[393875604,1763060959697,-533.49683416,0.00041155,7]
[393875605,1763060959721,-533.49683416,0.00041155,7]
[393875606,1763060959744,-533.49683416,0.00041155,7]
[393875607,1763060959766,-533.49683416,0.00041155,7]
[393875608,1763060959790,-533.49683416,0.00041155,7]
[393875609,1763060959814,-533.49683416,0.00041155,7]
[393875610,1763060959837,-533.49683416,0.00041155,7]
[393875611,1763060959861,-533.49683416,0.00041155,7]
[393875612,1763060959887,-533.49683416,0.00041155,7]
[393875613,1763060959913,-533.49683416,0.00041155,7]
[393875614,1763060959939,-533.49683416,0.00041155,7]
[393875615,1763060959963,-533.49683416,0.00041155,7]
[393875616,1763060959988,-533.49683416,0.00041155,7]
[393875617,1763060960011,-533.49683416,0.00041155,7]
[393875618,1763060960035,-533.49683416,0.00041155,7]
[393875619,1763060960059,-533.49683416,0.00041155,7]
[393875620,1763060960081,-533.49683416,0.00041155,7]
[393875621,1763060960105,-533.49683416,0.00041155,7]
[393875622,1763060960128,-533.49683416,0.00041155,7]
[393875623,1763060960150,-533.49683416,0.00041155,7]
[393875624,1763060960174,-533.49683416,0.00041155,7]
[393875625,1763060960197,-533.49683416,0.00041155,7]
[393875626,1763060960220,-533.49683416,0.00041155,7]
[393875627,1763060960243,-533.49683416,0.00041155,7]
[393875628,1763060960268,-533.49683416,0.00041155,7]
[393875629,1763060960293,-533.49683416,0.00041155,7]
[393875630,1763060960317,-533.49683416,0.00041155,7]
[393875631,1763060960343,-533.49683416,0.00041155,7]
[393875632,1763060960373,-533.49683416,0.00041155,7]
[393875633,1763060960404,-533.49683416,0.00041155,7]
[393875634,1763060960435,-533.49683416,0.00041155,7]
[393875635,1763060960473,-533.49683416,0.00041155,7]
[393875636,1763060960503,-533.49683416,0.00041155,7]
[393875637,1763060960535,-533.49683416,0.00041155,7]
[393875638,1763060960566,-533.49683416,0.00041155,7]
[393875639,1763060960593,-533.49683416,0.00041155,7]
[393875640,1763060960619,-536.06220246,0.00041155,7]
[393875641,1763060960643,-536.06220246,0.00041155,7]
[393875642,1763060960666,-536.06220246,0.00041155,7]
[393875643,1763060960689,-536.06220246,0.00041155,7]
[393875644,1763060960713,-536.06220246,0.00041155,7]
[393875645,1763060960741,-536.06220246,0.00041155,7]
[393875646,1763060960764,-536.06220246,0.00041155,7]
[393875647,1763060960876,-536.06220246,0.00041155,7]
[393875648,1763060960901,-536.06220246,0.00041155,7]
[393875649,1763060960926,-536.06220246,0.00041155,7]
[393875650,1763060960950,-536.06220246,0.00041155,7]
[393875651,1763060960972,-536.06220246,0.00041155,7]
[393875652,1763060960997,-536.06220246,0.00041155,7]
[393875653,1763060961021,-536.06220246,0.00041155,7]
[393875654,1763060961044,-536.06220246,0.00041155,7]
[393875655,1763060961068,-536.06220246,0.00041155,7]